bitfinex-derivatives/quotes_SOLF0:USTF0_20241024
["timestamp","ask_amount","ask_price","bid_price","bid_amount"]
[1729742235244,7.1114,174.3,174.26,2.8719]
[1729742235755,7.1114,174.3,174.26,3.97205]
[1729742236769,7.1114,174.3,174.27,7.04852092]
[1729742245863,1.2295,174.36,174.29,9.92002092]
[1729742245864,2.8709,174.33,174.29,9.92002092]
[1729742246058,4.24,174.32,174.31,7.04852092]
[1729742246464,4.24,174.32,174.31,9.91952092]
[1729742246762,4.24,174.32,174.31,7.04852092]
[1729742249866,4.24,174.32,174.27,2.8717]
[1729742249867,2.8711,174.31,174.27,2.8717]
[1729742250069,2.8711,174.31,174.26,7.04852092]
[1729742250468,2.8711,174.31,174.25,1.09977]
[1729742250670,2.8711,174.31,174.26,7.04852092]
[1729742250966,2.8711,174.31,174.26,8.14829092]
[1729742251265,9.91962092,174.31,174.28,2.8716]
[1729742252565,2.8711,174.31,174.28,2.8716]
[1729742253161,61.96,174.37,174.29,7.04852092]
[1729742253370,2.8705,174.35,174.32,2.871]
[1729742254271,2.8705,174.35,174.31,11.01939092]
[1729742255065,11.28852092,174.36,174.31,7.04852092]
[1729742255263,2.8707,174.34,174.31,7.04852092]
[1729742256272,2.8707,174.34,174.31,9.91962092]
[1729742262781,2.8707,174.34,174.31,2.8711]
[1729742263877,2.8711,174.32,174.28,2.8716]
[1729742264080,61.96,174.37,174.28,11.01996092]
[1729742264081,4.24,174.31,174.28,11.01996092]
[1729742264281,4.24,174.3,174.28,11.06799092]
[1729742264678,4.24,174.3,174.28,11.02002092]
[1729742267187,4.24,174.3,174.29,7.04852092]
[1729742267774,4.24,174.3,174.29,8.14842092]
[1729742268488,0.24,174.3,174.29,8.14842092]
[1729742268688,0.24,174.3,174.29,11.01992092]
[1729742268885,0.24,174.3,174.29,11.06763092]
[1729742269583,0.24,174.3,174.29,4.01911]
[1729742269781,0.24,174.3,174.29,11.06763092]
[1729742272791,0.24,174.3,174.29,11.02005092]
[1729742274203,4.24,174.31,174.29,8.14855092]
[1729742274502,0.24,174.31,174.3,8.25562092]
[1729742274997,0.24,174.31,174.3,11.12692092]
[1729742275792,0.24,174.31,174.3,12.22695092]
[1729742276901,4.24,174.31,174.3,12.22695092]
[1729742277100,0.24,174.31,174.3,12.22695092]
[1729742277798,2.8704,174.36,174.32,2.8709]
[1729742278004,2.24,174.35,174.33,7.04852092]
[1729742279094,0.24,174.35,174.33,7.04852092]
[1729742279294,0.24,174.35,174.32,2.8709]
[1729742280506,0.24,174.35,174.31,1.10003]
[1729742280507,2.8709,174.33,174.31,1.10003]
[1729742280695,0.24,174.35,174.31,8.14855092]
[1729742280900,0.24,174.35,174.31,7.04852092]
[1729742281105,0.24,174.35,174.31,8.14855092]
[1729742281807,3.1105,174.35,174.32,2.8709]
[1729742284606,61.96,174.37,174.35,2.8704]
[1729742284808,4.24,174.36,174.35,2.8704]
[1729742285302,4.24,174.36,174.34,7.04852092]
[1729742285605,4.24,174.36,174.34,9.91912092]
[1729742287506,4.24,174.36,174.34,2.8706]
[1729742288106,64.8302,174.37,174.34,2.8706]
[1729742288295,4.24,174.35,174.34,2.8706]
[1729742292110,4.24,174.35,174.32,8.19586092]
[1729742292111,4.24,174.35,174.33,2.8707]
[1729742294298,4.24,174.35,174.32,1.14734]
[1729742294504,4.24,174.35,174.31,2.8711]
[1729742294703,11.28852092,174.35,174.31,2.8711]
[1729742295117,14.15902092,174.35,174.31,2.8711]
[1729742295308,14.15902092,174.35,174.31,4.01844]
[1729742295504,14.15902092,174.35,174.31,2.8711]
[1729742295813,14.15902092,174.35,174.31,4.01844]
[1729742297016,14.15902092,174.35,174.31,2.8711]
[1729742297314,7.1105,174.35,174.31,9.91962092]
[1729742298212,7.1105,174.35,174.31,11.06696092]
[1729742298417,4.24,174.35,174.34,7.04852092]
[1729742298612,61.96,174.37,174.34,9.91912092]
[1729742298911,4.24,174.36,174.34,9.91912092]
[1729742300006,4.24,174.36,174.33,2.8707]
[1729742301008,4.24,174.36,174.31,7.04852092]
[1729742301816,4.24,174.36,174.34,2.8706]
[1729742311612,2.8708,174.34,174.3,2.8712]
[1729742311817,7.04852092,174.35,174.3,2.8712]
[1729742312425,2.8708,174.34,174.3,2.8712]
[1729742312721,2.8708,174.34,174.3,4.01877]
[1729742313227,2.8708,174.34,174.3,2.8712]
[1729742313737,2.8708,174.34,174.3,4.01877]
[1729742314320,2.8708,174.33,174.3,4.01877]
[1729742314525,4.24,174.32,174.3,4.01877]
[1729742318127,4.24,174.32,174.3,2.8712]
[1729742323931,4.24,174.32,174.27,7.24846092]
[1729742324126,4.24,174.32,174.29,2.8714]
[1729742324337,11.28852092,174.32,174.25,2.3967]
[1729742324636,7.04852092,174.3,174.25,2.33637]
[1729742324835,7.04852092,174.3,174.25,1.1885]
[1729742325336,7.04852092,174.3,174.25,4.0606]
[1729742325642,7.04852092,174.3,174.25,5.20847]
[1729742325940,2.8715,174.29,174.25,5.20847]
[1729742326138,4.24,174.28,174.25,5.20847]
[1729742327445,4.24,174.28,174.26,2.8719]
[1729742328042,2.9654,174.39,174.27,7.04852092]
[1729742328343,2.9654,174.39,174.3,2.8712]
[1729742328344,2.8707,174.34,174.3,2.8712]
[1729742328641,4.24,174.33,174.3,2.8712]
[1729742328842,4.24,174.33,174.3,4.01907]
[1729742331134,7.04852092,174.37,174.32,2.8709]
[1729742331339,7.04852092,174.37,174.3,8.19639092]
[1729742331340,4.24,174.36,174.3,8.19639092]
[1729742331839,7.1104,174.36,174.32,2.871]
[1729742332044,7.1104,174.36,174.32,4.01887]
[1729742332747,4.24,174.36,174.32,4.01887]
[1729742332945,2.8705,174.35,174.32,4.01887]
[1729742334247,2.8705,174.35,174.32,1.14787]
[1729742338141,4.24,174.36,174.33,9.91912092]
[1729742338748,4.24,174.36,174.33,2.8706]
[1729742339148,4.24,174.36,174.32,1.14787]
[1729742339341,4.24,174.36,174.32,4.01867]
[1729742340342,4.24,174.36,174.33,2.8708]
[1729742343259,11.28852092,174.36,174.32,1.14787]
[1729742343554,14.15892092,174.36,174.32,1.14787]
[1729742344151,11.28852092,174.36,174.32,4.01877]
[1729742344349,7.1103,174.36,174.32,1.14787]
[1729742344653,14.15882092,174.36,174.32,1.14787]
[1729742345266,14.15882092,174.36,174.32,4.01877]
[1729742350868,4.24,174.36,174.33,2.8708]
[1729742351065,4.24,174.36,174.32,1.14787]
[1729742351066,4.24,174.36,174.32,8.19639092]
[1729742351873,4.24,174.36,174.33,2.8708]
[1729742352671,9.91872092,174.37,174.33,2.8708]
[1729742352973,4.22,174.36,174.34,2.8706]
[1729742361672,4.22,174.36,174.33,2.8707]
[1729742366688,4.22,174.36,174.33,9.91922092]
[1729742367685,7.0904,174.36,174.33,2.8707]
[1729742368682,14.13892092,174.36,174.32,3.47076]
[1729742368878,14.13892092,174.36,174.32,2.8709]
[1729742369078,2.8705,174.35,174.32,1.09977]
[1729742369275,2.8705,174.35,174.32,1.14741]
[1729742369784,2.8705,174.35,174.32,1.09977]
[1729742370283,4.22,174.34,174.32,1.09977]
[1729742371184,2.8699,174.39,174.35,2.8703]
[1729742371486,4.22,174.38,174.35,9.91882092]
[1729742371694,4.22,174.37,174.35,2.8703]
[1729742371883,1.2754,174.44,174.35,2.8703]
[1729742371884,4.22,174.36,174.35,2.8703]
[1729742376792,4.22,174.36,174.34,11.01889092]
[1729742377692,7.04852092,174.35,174.29,1.2713]
[1729742377903,7.04852092,174.35,174.29,8.31982092]
[1729742378193,7.04852092,174.35,174.29,9.46746092]
[1729742378389,7.04852092,174.35,174.29,9.41966092]
[1729742379188,2.8708,174.33,174.29,5.24254]
[1729742379394,4.22,174.32,174.29,2.37114]
[1729742379693,4.22,174.32,174.27,7.04852092]
[1729742379694,14.13962092,174.32,174.27,2.8718]
[1729742379892,4.22,174.32,174.24,7.04852092]
[1729742380195,7.04852092,174.3,174.25,2.28834]
[1729742380587,9.92002092,174.3,174.25,5.16034]
[1729742381984,2.8715,174.3,174.26,2.8719]
[1729742382596,2.8717,174.28,174.25,2.28834]
[1729742382794,11.26852092,174.32,174.26,7.04852092]
[1729742383204,11.26852092,174.32,174.26,8.14836092]
[1729742384298,2.8714,174.3,174.26,11.02026092]
[1729742385289,2.8715,174.29,174.26,3.97174]
[1729742385690,4.22,174.28,174.26,3.97174]
[1729742386992,7.0917,174.28,174.26,1.09984]
[1729742387399,4.22,174.28,174.26,1.09984]
[1729742388701,4.22,174.28,174.24,1.09984]
[1729742388896,11.26852092,174.28,174.24,1.09984]
[1729742389091,7.04852092,174.27,174.24,1.09984]
[1729742389297,2.872,174.26,174.23,1.09987]
[1729742389497,2.872,174.26,174.22,3.97237]
[1729742389793,9.92052092,174.26,174.22,3.97231]
[1729742390102,9.92052092,174.26,174.22,2.8725]
[1729742390995,9.92052092,174.26,174.22,3.97231]
[1729742391805,2.872,174.26,174.22,3.97231]
[1729742392003,7.04852092,174.25,174.22,3.97231]
[1729742392297,4.22,174.24,174.22,3.97231]
[1729742392498,4.22,174.24,174.2,8.29342092]
[1729742392499,4.22,174.24,174.2,1.2449]
[1729742392702,9.92102092,174.23,174.19,3.97277]
[1729742392900,9.92102092,174.23,174.19,4.02113]
[1729742393405,9.92102092,174.23,174.19,2.873]
[1729742394304,9.92102092,174.23,174.14,1.2525]
[1729742394305,7.04852092,174.2,174.14,1.09974]
[1729742394603,2.8733,174.18,174.14,2.8738]
[1729742394814,4.22,174.17,174.14,2.8738]
[1729742395001,4.22,174.17,174.14,4.02207]
[1729742396210,11.26852092,174.17,174.14,1.14827]
[1729742396418,7.04852092,174.16,174.13,1.14827]
[1729742396703,7.04852092,174.16,174.12,1.14827]
[1729742398311,2.8738,174.15,174.11,1.14827]
[1729742398504,7.04852092,174.15,174.11,1.14827]
[1729742399303,7.04852092,174.15,174.13,2.8741]
[1729742401110,7.04852092,174.16,174.13,2.8741]
[1729742401705,7.04852092,174.16,174.13,4.02237]
[1729742402705,7.04852092,174.14,174.13,1.14827]
[1729742402905,4.22,174.17,174.13,1.14827]
[1729742403108,4.22,174.17,173.93,336.6321]
[1729742403109,7.04852092,174.14,174.09,1.14827]
[1729742403420,4.22,174.13,174.06,1.14827]
[1729742403617,7.04852092,174.08,174.06,1.14827]
[1729742403803,4.22,174.08,174.06,1.14827]
[1729742404008,4.22,174.08,174.07,2.875]
[1729742404508,7.04852092,174.09,174.08,2.8749]
[1729742404509,11.26852092,174.09,174.08,2.8749]
[1729742405218,4.22,174.09,174.06,2.8751]
[1729742405517,7.04852092,174.07,174.06,2.8751]
[1729742406218,7.04852092,174.08,174.06,2.8751]
[1729742406910,4.22,174.09,174.04,1.09977]
[1729742407214,11.26852092,174.08,174.04,1.09977]
[1729742407613,4.22,174.08,174.04,8.14829092]
[1729742408118,11.26852092,174.09,174.04,1.09977]
[1729742408311,11.26852092,174.09,174.04,8.14829092]
[1729742408630,4.22,174.09,174.06,7.04852092]
[1729742409117,4.22,174.09,174.06,8.14833092]
[1729742409513,4.22,174.09,174.08,2.8749]
[1729742410415,4.22,174.09,174.08,3.97471]
[1729742411615,1.2811,174.16,174.12,2.8741]
[1729742411816,11.26852092,174.15,174.12,2.8741]
[1729742412014,11.26852092,174.15,174.11,1.09981]
[1729742412319,4.22,174.14,174.11,1.09981]
[1729742412708,4.22,174.14,174.11,3.97411]
[1729742413110,4.22,174.14,174.11,1.09981]
[1729742413910,4.22,174.14,174.08,7.04852092]
[1729742414221,7.04852092,174.13,174.09,2.8746]
[1729742414424,4.22,174.14,174.07,1.09977]
[1729742414425,7.04852092,174.1,174.07,1.09977]
[1729742414723,7.04852092,174.1,174.01,4.22]
[1729742414724,4.22,174.1,174.01,4.22]
[1729742414909,1.2811,174.16,174.09,7.04852092]
[1729742414910,4.22,174.16,174.09,7.04852092]
[1729742415113,1.2599,174.21,174.13,7.04852092]
[1729742415322,7.0931,174.2,174.16,2.8735]
[1729742415519,1.2599,174.21,174.16,1.0999]
[1729742415716,11.26852092,174.22,174.16,8.14842092]
[1729742415918,11.26852092,174.22,174.19,2.8731]
[1729742416515,7.04852092,174.21,174.19,2.8731]
[1729742416722,7.04852092,174.21,174.19,3.97287]
[1729742417918,4.22,174.22,174.19,3.97287]
[1729742418423,4.22,174.22,174.19,1.09977]
[1729742418623,7.04852092,174.21,174.18,3.97297]
[1729742418826,7.04852092,174.21,174.18,2.8732]
[1729742419118,7.04852092,174.21,174.17,1.1]
[1729742419119,4.22,174.22,174.21,2.8728]
[1729742419527,4.22,174.22,174.21,3.9728]
[1729742421026,4.22,174.22,174.21,11.02132092]
[1729742421225,4.22,174.25,174.23,2.8723]
[1729742421417,7.04852092,174.27,174.21,8.14852092]
[1729742421617,4.22,174.26,174.21,8.14852092]
[1729742422433,11.26852092,174.26,174.21,8.14852092]
[1729742423026,11.26852092,174.26,174.23,2.8723]
[1729742423528,11.26852092,174.26,174.22,1.1]
[1729742423529,11.26852092,174.26,174.22,3.9726]
[1729742424525,4.22,174.26,174.22,3.9726]
[1729742427534,4.22,174.26,174.23,2.8724]
[1729742427927,4.22,174.26,174.23,3.9724]
[1729742429231,2.871,174.32,174.28,2.8715]
[1729742429435,4.22,174.31,174.28,9.92002092]
[1729742429634,4.22,174.31,174.28,2.8715]
[1729742429833,4.22,174.31,174.18,1.2724]
[1729742429834,7.04852092,174.29,174.26,1.1]
[1729742430035,4.22,174.31,174.18,1.2724]
[1729742430036,4.22,174.31,174.2,7.04852092]
[1729742430339,7.04852092,174.25,174.2,8.19646092]
[1729742430735,7.04852092,174.25,174.24,2.8723]
[1729742431736,4.22,174.26,174.24,2.8723]
[1729742433032,4.22,174.26,174.22,2.8725]
[1729742433233,11.26852092,174.26,174.21,8.14829092]
[1729742433638,11.26852092,174.26,174.23,2.8723]
[1729742435435,11.26852092,174.26,174.23,2.8724]
[1729742436536,4.22,174.26,174.23,2.8724]
[1729742436738,4.22,174.26,174.24,2.8723]
[1729742444336,11.26852092,174.26,174.22,1.09977]
[1729742444539,11.26852092,174.26,174.21,3.97257]
[1729742444540,7.04852092,174.25,174.21,3.97257]
[1729742444740,7.04852092,174.25,174.21,4.0209]
[1729742444940,7.04852092,174.25,174.21,2.8728]
[1729742445141,9.92062092,174.25,174.22,2.8726]
[1729742446046,9.92062092,174.25,174.22,4.0207]
[1729742446451,9.92062092,174.25,174.22,2.8726]
[1729742446650,9.92062092,174.25,174.22,4.0207]
[1729742446852,7.04852092,174.25,174.22,4.0207]
[1729742448646,9.92072092,174.25,174.21,4.0209]
[1729742449151,9.92072092,174.25,174.21,2.8728]
[1729742449353,7.04852092,174.22,174.18,1.2724]
[1729742449554,11.26852092,174.22,174.18,1.1481]
[1729742449760,11.26852092,174.22,174.17,1.1481]
[1729742449958,11.26852092,174.22,174.17,1.09981]
[1729742450147,7.04852092,174.21,174.12,1.2383]
[1729742450351,7.04852092,174.18,174.15,1.14836]
[1729742450654,7.04852092,174.18,174.13,7.04852092]
[1729742450655,7.04852092,174.17,174.13,1.1486]
[1729742450858,7.04852092,174.17,174.14,2.8739]
[1729742451252,7.04852092,174.15,174.13,1.09984]
[1729742451454,4.22,174.14,174.12,1.09984]
[1729742451666,4.22,174.14,174.11,1.09984]
[1729742453261,4.22,174.14,174.12,2.8742]
[1729742453655,11.26852092,174.14,174.12,2.8742]
[1729742453961,11.26852092,174.14,174.12,3.97404]
[1729742454556,11.26852092,174.14,174.12,2.8742]
[1729742455262,11.26852092,174.14,174.12,3.97404]
[1729742455957,14.14252092,174.14,174.12,1.09984]
[1729742456161,11.26852092,174.14,174.12,1.09984]
[1729742456557,4.22,174.14,174.11,3.97414]
[1729742456959,11.26852092,174.14,174.11,1.09984]
[1729742457155,11.26852092,174.14,174.11,3.97424]
[1729742457362,4.22,174.14,174.11,2.8744]
[1729742457663,11.26852092,174.14,174.11,2.8744]
[1729742458461,11.26852092,174.14,174.12,2.8742]
[1729742460354,2.873,174.2,174.16,2.8736]
[1729742460561,7.04852092,174.17,174.11,8.14836092]
[1729742460965,7.04852092,174.17,174.13,2.874]
[1729742461370,7.04852092,174.16,174.13,2.874]
[1729742461666,11.26852092,174.16,174.13,2.874]
[1729742464565,4.22,174.16,174.13,2.874]
[1729742467876,4.22,174.16,174.13,2.8741]
[1729742470473,7.04852092,174.15,174.13,2.8741]
[1729742470676,7.04852092,174.14,174.12,3.97394]
[1729742470976,7.04852092,174.14,174.12,2.8741]
[1729742471179,4.22,174.16,174.12,2.8741]
[1729742471180,7.0937,174.16,174.12,2.8741]
[1729742471474,14.14222092,174.16,174.12,2.8741]
[1729742472466,11.26852092,174.16,174.1,1.14883]
[1729742472675,11.26852092,174.16,174.11,7.04852092]
[1729742472975,4.22,174.16,174.11,8.14826092]
[1729742473174,4.22,174.16,174.12,7.04852092]
[1729742473474,4.22,174.16,174.12,8.14826092]
[1729742473676,4.22,174.16,174.13,2.8741]
[1729742473873,4.22,174.16,174.12,7.04852092]
[1729742474182,4.22,174.15,174.12,8.14826092]
[1729742474673,4.22,174.15,174.14,9.92232092]
[1729742474873,11.26852092,174.15,174.12,1.09974]
[1729742475080,11.26852092,174.15,174.09,1.09974]
[1729742475081,7.04852092,174.13,174.09,1.09974]
[1729742475375,7.04852092,174.11,174.07,2.32534]
[1729742475568,4.22,174.1,174.07,2.32534]
[1729742475767,4.22,174.11,174.09,2.8746]
[1729742476271,4.22,174.11,174.07,2.32524]
[1729742476479,4.22,174.11,174.1,2.8746]
[1729742477168,11.26852092,174.11,174.07,1.09974]
[1729742477374,7.04852092,174.09,174.03,1.09974]
[1729742477671,7.04852092,174.07,174.02,1.14932]
[1729742477872,4.22,174.06,174.04,2.8754]
[1729742478675,7.04852092,174.05,173.83,328.0]
[1729742478984,7.04852092,174.05,174.0,7.04852092]
[1729742479181,4.22,174.04,174.0,7.04852092]
[1729742479377,4.22,174.04,174.0,8.14823092]
[1729742479673,7.04852092,174.07,174.03,7.04852092]
[1729742479674,4.22,174.07,174.03,7.04852092]
[1729742479876,4.22,174.07,174.05,7.04852092]
[1729742480073,7.04852092,174.09,174.03,7.04852092]
[1729742480267,4.22,174.08,174.03,1.09971]
[1729742480671,4.22,174.08,174.06,2.8751]
[1729742481079,4.22,174.08,174.05,1.09971]
[1729742481280,4.22,174.08,174.07,2.8751]
[1729742481881,62.04,174.11,174.07,2.8751]
[1729742482178,4.22,174.1,174.06,1.09971]
[1729742483880,4.22,174.1,174.06,3.97481]
[1729742485480,4.22,174.1,174.06,1.09971]
[1729742485677,4.22,174.1,174.07,2.8751]
[1729742486179,4.22,174.1,174.06,3.97491]
[1729742486680,4.22,174.1,174.06,1.09971]
[1729742487874,7.0946,174.1,174.06,3.97491]
[1729742488076,4.22,174.1,174.06,3.97491]
[1729742488474,4.22,174.1,174.06,1.09971]
[1729742488679,64.9145,174.11,174.1,2.8746]
[1729742488680,62.04,174.11,174.1,2.8746]
[1729742488881,4.4,174.11,174.1,2.8746]
[1729742489182,2.874,174.14,174.1,2.8746]
[1729742489383,4.4,174.13,174.1,2.8746]
[1729742489573,2.8743,174.12,174.08,2.8749]
[1729742489774,4.4,174.13,174.07,1.09965]
[1729742489974,11.03799496,174.12,174.02,11.03799496]
[1729742490185,2.8746,174.1,174.05,2.8754]
[1729742490382,4.4,174.09,174.05,2.8754]
[1729742490581,4.4,174.09,174.02,12.18711496]
[1729742490582,4.4,174.09,174.04,2.8756]
[1729742490882,4.4,174.09,174.04,1.09984]
[1729742491075,4.4,174.09,174.04,12.13783496]
[1729742491885,4.4,174.09,174.08,2.8749]
[1729742492685,4.4,174.09,174.08,3.97474]
[1729742494990,4.4,174.09,174.01,2.4142]
[1729742494991,4.4,174.09,174.07,1.09984]
[1729742495182,4.4,174.09,174.06,1.09987]
[1729742495382,4.4,174.09,174.05,11.03799496]
[1729742495677,4.4,174.09,174.08,2.8749]
[1729742496486,4.4,174.09,174.05,11.03799496]
[1729742496487,4.4,174.09,174.07,2.875]
[1729742496887,4.4,174.09,174.05,11.03799496]
[1729742497189,4.4,174.09,174.08,2.8749]
[1729742497588,4.4,174.09,174.03,2.8756]
[1729742499393,4.4,174.09,174.08,2.8749]
[1729742500200,4.4,174.1,174.08,3.97455]
[1729742500395,4.4,174.1,174.09,2.8748]
[1729742500993,4.4,174.1,174.08,1.09965]
[1729742501193,4.4,174.1,174.08,3.97455]
[1729742501897,4.4,174.1,174.06,1.09965]
[1729742502098,4.4,174.1,174.04,1.09981]
[1729742502297,4.4,174.1,174.06,2.8751]
[1729742502692,4.4,174.1,174.05,2.8753]
[1729742502997,4.4,174.1,174.05,1.09965]
[1729742503395,7.2746,174.1,174.06,2.8751]
[1729742503894,7.2746,174.1,174.06,3.97475]
[1729742504301,7.2746,174.1,174.06,2.8751]
[1729742505002,7.2746,174.1,174.06,3.97478]
[1729742505403,4.4,174.1,174.07,2.8751]
[1729742505996,4.4,174.1,174.07,3.97478]
[1729742507699,4.4,174.1,173.99,0.36872638]
[1729742507902,4.4,174.1,174.04,11.03799496]
[1729742508105,4.4,174.1,174.07,2.8749]
[1729742508304,4.4,174.1,174.07,9.94351735]
[1729742509008,4.4,174.1,174.07,11.04325735]
[1729742509204,4.4,174.1,174.08,2.8749]
[1729742509406,4.4,174.1,174.08,3.97464]
[1729742512116,4.4,174.1,174.08,1.09974]
[1729742513820,4.4,174.1,174.07,9.94361735]
[1729742514016,9.94351735,174.08,174.07,1.09974]
[1729742514316,9.94351735,174.08,174.04,1.14899]
[1729742514517,9.94351735,174.08,174.03,4.02459]
[1729742514918,9.94351735,174.08,174.03,3.97541]
[1729742515122,9.94351735,174.08,174.04,2.8755]
[1729742515618,9.94351735,174.08,174.02,7.06861735]
[1729742515619,2.8751,174.07,174.02,7.06861735]
[1729742515921,4.4,174.06,174.02,11.04422735]
[1729742516220,4.4,174.06,174.02,8.16842735]
[1729742517216,4.4,174.06,174.03,2.8757]
[1729742517611,4.4,174.06,174.04,7.06861735]
[1729742517816,79.35915552,174.64,174.06,2.8752]
[1729742517817,4.4,174.08,174.06,2.8752]
[1729742518028,4.4,174.08,174.07,7.06861735]
[1729742518520,4.4,174.08,174.07,8.16832735]
[1729742519125,4.4,174.08,174.07,2.8751]
[1729742519311,4.4,174.08,174.07,3.97481]
[1729742520926,4.4,174.08,174.07,11.04342735]
[1729742522623,4.4,174.08,174.07,3.97481]
[1729742522826,4.4,174.08,174.07,11.04342735]
[1729742523024,4.4,174.08,174.07,11.09287735]
[1729742531336,4.4,174.08,174.07,1.14916]
[1729742531533,4.4,174.08,174.0,1.1887]
[1729742531534,4.4,174.08,174.05,8.21777735]
[1729742531732,4.4,174.08,174.05,7.06861735]
[1729742532040,4.4,174.08,174.05,8.21777735]
[1729742532337,4.4,174.08,174.07,9.94371735]
[1729742532730,4.4,174.1,174.07,7.06861735]
[1729742532930,4.4,174.1,174.09,7.06861735]
[1729742533740,4.4,174.1,174.09,9.94341735]
[1729742534426,4.4,174.1,174.08,1.09968]
[1729742534741,4.4,174.1,174.03,1.1986]
[1729742534742,4.4,174.1,174.05,1.09981]
[1729742535326,4.4,174.1,174.06,2.8752]
[1729742535327,7.2747,174.1,174.06,2.8752]
[1729742535535,4.4,174.1,174.05,1.09981]
[1729742536032,5.5925,174.1,174.05,1.09981]
[1729742536234,2.8749,174.09,174.05,3.97521]
[1729742536835,2.8749,174.08,174.05,3.97521]
[1729742537039,2.8749,174.08,174.04,3.97531]
[1729742537339,2.8749,174.08,174.04,4.02472]
[1729742537636,5.5925,174.1,174.04,1.09974]
[1729742537845,7.06861735,174.09,174.04,1.09974]
[1729742539442,9.94351735,174.09,174.05,2.8754]
[1729742542834,9.94351735,174.09,174.03,1.09974]
[1729742542835,7.06861735,174.09,174.03,1.09974]
[1729742543035,5.5925,174.1,174.02,4.02506]
[1729742543036,2.8753,174.06,174.02,4.02506]
[1729742543235,4.4,174.05,174.02,2.8758]
[1729742543737,4.4,174.05,174.02,4.02506]
[1729742544240,4.4,174.05,173.79,556.0]
[1729742544446,7.06861735,174.02,173.95,7.06861735]
[1729742544636,4.4,174.01,174.0,7.06861735]
[1729742544832,62.06,174.08,174.01,2.876]
[1729742544833,4.4,174.02,174.01,2.876]
[1729742545139,4.4,174.02,174.01,1.14939]
[1729742545335,4.4,174.02,173.89,1.2595]
[1729742545537,7.2761,174.02,173.97,2.8766]
[1729742546137,4.4,174.02,173.97,1.09952]
[1729742546543,4.4,174.02,173.97,8.21800735]
[1729742546737,4.4,174.02,173.99,2.8764]
[1729742546943,4.34,174.01,174.0,7.06861735]
[1729742547842,62.06,174.08,174.0,7.06861735]
[1729742548052,4.34,174.07,174.01,7.06861735]
[1729742548340,4.34,174.07,174.01,8.16813735]
[1729742548648,4.34,174.07,174.03,2.8757]
[1729742549045,4.34,174.07,174.02,1.09952]
[1729742549046,2.8757,174.04,174.02,1.09952]
[1729742549347,4.34,174.03,173.99,8.21800735]
[1729742549548,4.34,174.03,174.0,7.06861735]
[1729742549938,4.34,174.03,174.0,9.94471735]
[1729742550347,2.8757,174.04,174.0,11.04436735]
[1729742550547,4.34,174.03,174.01,2.8761]
[1729742551046,4.34,174.03,174.01,3.97575]
[1729742551450,4.34,174.03,174.01,2.8761]
[1729742552755,4.34,174.03,174.01,3.97575]
[1729742553359,4.34,174.03,174.01,2.8761]
[1729742553851,4.34,174.03,174.0,3.97575]
[1729742554353,4.34,174.03,174.0,2.8761]
[1729742555148,4.34,174.03,174.0,3.97575]
[1729742555752,4.34,174.03,174.0,2.8761]
[1729742556459,4.34,174.03,173.99,1.09965]
[1729742556757,4.34,174.03,173.99,8.16826735]
[1729742556958,62.06,174.08,174.01,7.06861735]
[1729742557164,4.34,174.07,174.04,2.8755]
[1729742557359,4.34,174.07,174.01,8.16838735]
[1729742557660,7.2151,174.07,174.03,2.8757]
[1729742557955,7.06861735,174.05,174.01,1.09977]
[1729742558252,7.06861735,174.05,173.99,7.06861735]